Cogmind - Beta 15 @@@ ROGUE MODE // 2025.07.14 @ 00:51:15 Player: nostromo Result: Destroyed by OO-IIG(R) with Subdweller Machine Gun Performance ------------- Evolutions (0) 0 Regions Visited (2) 400 Robots Destroyed (6) 30 Value Destroyed (180) 180 Prototype IDs (0) 0 Alien Tech Used (0) 0 Bonus (0) 0 TOTAL SCORE: 610 Bonus ------- None Cogmind --------- Core Integrity 0/250 Matter 244/300 Energy 110/125 System Corruption 0% Temperature Cool (6) Movement Walking (190) Ox1 Location -10/Subcaves Parts ------- > --- POWER (1) -------- Light Ion Engine > --- PROPULSION (2) --- Aluminum Leg Aluminum Leg > --- UTILITY (2) ------ Small Storage Unit Signal Interpreter > --- WEAPON (2) ------- Subdweller Beam Cannon Bore Cannon > --- INVENTORY (8) ---- Subdweller Power Source Medium Battery (150) Subdweller Optics Scrap Shield Light Assault Rifle Scrap Shield Fragment (43) Peak State ------------ > --- POWER ------------ Light Ion Engine > --- PROPULSION ------- Aluminum Leg Aluminum Leg > --- UTILITY ---------- Small Storage Unit Signal Interpreter > --- WEAPON ----------- Subdweller Beam Cannon Bore Cannon > --- INVENTORY -------- Medium Battery Subdweller Optics Scrap Shield Light Assault Rifle Scrap Shield Fragment [Rating: 13] Favorites ----------- Power Ion Engine Engine Ion Engine Propulsion Compact Wheel Treads Light Treads Leg Aluminum Leg Wheel Compact Wheel Utility Small Storage Unit Storage Small Storage Unit Processor Signal Interpreter Weapon Light Assault Rifle Energy Cannon Subdweller Beam Cannon Ballistic Gun Light Assault Rifle Ballistic Cannon Bore Cannon Build | -11 -10 -10 ------- Run | Yrd Mat Sub Slots Evolved . | . . . Power . | . . . Propulsion . | . . . Utility . | . . . Weapon . | . . . Parts Attached 14 | 6 1 7 Power 2 | 1 . 1 Engine 2 | 1 . 1 Core . | . . . Reactor . | . . . Propulsion 6 | 2 . 4 Treads 2 | . . 2 Leg 2 | . . 2 Wheel 2 | 2 . . Hover . | . . . Flight . | . . . Utility 2 | 1 1 . Device . | . . . Storage 1 | 1 . . Processor 1 | . 1 . Hackware . | . . . Protection . | . . . Artifact . | . . . Weapon 4 | 2 . 2 Energy Gun . | . . . Energy Cannon 1 | . . 1 Ballistic Gun 2 | 2 . . Ballistic Cannon 1 | . . 1 Launcher . | . . . Special Weapon . | . . . Impact Weapon . | . . . Slashing Weapon . | . . . Piercing Weapon . | . . . Special Melee Weapon . | . . . Unidentified Prototypes . | . . . Parts Lost 2 | . . 2 Power . | . . . Propulsion 2 | . . 2 Utility . | . . . Weapon . | . . . Highest Loss Streak 2 | . . 2 To Critical Strikes . | . . . Average Backups 5 | 4 6 5 Power . | . 1 . Propulsion 2 | 2 4 1 Utility 1 | . . 2 Weapon . | . 1 . Tool/Special . | . . . Unused Backups 5 | . . 5 Power 1 | . . 1 Propulsion . | . . . Utility 3 | . . 3 Weapon 1 | . . 1 Tool/Special . | . . . Average Slot Usage (%) 97 | . 93 98 Engine 14 | . 14 14 Treads 3 | . . 5 Leg 10 | . . 15 Wheel 13 | . 28 6 Storage 14 | . 14 14 Processor 12 | . 7 14 Energy Cannon 4 | . . 7 Ballistic Gun 17 | . 28 13 Ballistic Cannon 5 | . . 7 Peak Build Rating 13 | 6 7 13 Average Rating 8 | 4 6 10 On Entrance 4 | . 6 7 Naked Turns . | . . . Heaviest Build 25 | 12 12 25 Greatest Support 40 | 32 32 40 Greatest Overweight (x) 1 | . . 1 Average Overweight (x) . | . . . Largest Inventory Capacity 8 | 8 8 8 Average Capacity 7 | 6 8 8 Most Carried 8 | 6 7 8 Average Carried 6 | 4 6 6 Final Capacity 8 | 8 8 8 Final Carried 7 | 6 7 7 Class Distribution -------------------- 100% | Mutant Dominant Class ---------------- Mutant | -10/Materials Mutant | -10/Subcaves Resources | -11 -10 -10 ----------- Run | Yrd Mat Sub Matter Collected 421 | 189 . 232 Remotely . | . . . Salvage Created 219 | . . 219 Parts 13 | . . 13 Haulers Intercepted . | . . . Recyclers Shooed . | . . . Parts Field Recycled . | . . . Retrieved Matter . | . . . Parts Self-Destructed 15 | . . 15 Prevented . | . . . Kills | -11 -10 -10 ------- Run | Yrd Mat Sub Combat Hostiles Destroyed 6 | . . 6 Guns 3 | . . 3 Cannons 2 | . . 2 Classes Destroyed 2 | . . 2 Swarmer 2 | . . 2 Subdweller 4 | . . 4 Best Kill Streak 2 | . . 2 Combat Bots Only 2 | . . 2 Max Kills in Single Turn 1 | . . 1 Gunslinging . | . . . Exploded . | . . . Melee . | . . . Uniques/NPCs Destroyed . | . . . Combat | -11 -10 -10 -------- Run | Yrd Mat Sub Hostile Shots Fired 66 | . . 66 Missed 23 | . . 23 Hits 43 | . . 43 Projectile 43 | . . 43 Critical Strikes 2 | . . 2 Damage Taken 831 | . . 831 Core 256 | . . 256 Absorbed by Shields . | . . . Core Remaining (%) 100 | 100 . . Volleys Fired 31 | . . 31 Largest 2 | . . 2 Hottest 128 | . . 128 Shots Fired 62 | . . 62 Gun 32 | . . 32 Cannon 30 | . . 30 Launcher . | . . . Special . | . . . Kinetic 47 | . . 47 Thermal 15 | . . 15 Explosive . | . . . Electromagnetic . | . . . Robot Hit Streak 8 | . . 8 Robot Miss Streak 4 | . . 4 Penetration Max . | . . . Secondary Targets 1 | . . 1 Max Gunslinging Chain 1 | . . 1 Shots Hit Robots 38 | . . 38 Core Hits 9 | . . 9 Critical Kills 2 | . . 2 Critical Parts Destroyed . | . . . Critical Strikes 7 | . . 7 Meltdown 1 | . . 1 Destroy 6 | . . 6 Melee Attacks . | . . . Impact . | . . . Slashing . | . . . Piercing . | . . . Sneak Attacks . | . . . Combat Hostiles . | . . . Follow-up Attacks . | . . . Damage Inflicted 516 | . . 516 Guns 161 | . . 161 Cannons 355 | . . 355 Explosions . | . . . Melee . | . . . Ramming . | . . . Kinetic 300 | . . 300 Thermal 216 | . . 216 Explosive . | . . . Electromagnetic . | . . . Impact . | . . . Slashing . | . . . Piercing . | . . . Highest Corruption . | . . . Average Corruption . | . . . Corruption Purged . | . . . Corruption Blocked . | . . . Overload Shots . | . . . Overflow Damage . | . . . Projectiles . | . . . Explosions . | . . . Melee . | . . . Knockbacks 3 | . . 3 Impact . | . . . Kinetic 3 | . . 3 Secondary . | . . . Self-Inflicted Damage . | . . . Shots . | . . . Rammed . | . . . Targets Rammed . | . . . Kicked . | . . . Crushed . | . . . Highest Temperature 42 | . . 42 Average Temperature 18 | . . 18 Received Heat Transfer 135 | . . 135 Siege Activations . | . . . Martial Activations . | . . . Shielding Activations . | . . . Robots Disrupted . | . . . Combat Hostiles . | . . . Robots Corrupted . | . . . Combat Hostiles . | . . . Parts Fried . | . . . Impact Corruptions . | . . . Robots Melted 1 | . . 1 Combat Hostiles 1 | . . 1 Parts Melted 2 | . . 2 Heat Transferred 296 | . . 296 Parts Sabotaged . | . . . Parts Stolen . | . . . Parts Stripped . | . . . Power Chain Reactions . | . . . Alert | -11 -10 -10 ------- Run | Yrd Mat Sub Maximum Alert Level . | . . . Low Security (%) 100 | 100 100 . Level 1 . | . . . Level 2 . | . . . Level 3 . | . . . Level 4 . | . . . Level 5 . | . . . High Security . | . . . Max Security . | . . . Peak Influence . | . . . Initial . | . . . Average . | . . . Influence Increases 65 | . . 65 Destroy 0b10 Robot/C 40 | . . 40 Destroy Leader 10 | . . 10 Lose Combat Pursuer 15 | . . 15 Influence Decreases 65 | . . 65 Time Decay 65 | . . 65 Squads Dispatched . | . . . Investigation . | . . . Extermination . | . . . Reinforcement . | . . . Assault . | . . . Garrison . | . . . Intercept . | . . . Searches Triggered . | . . . Construction Impeded . | . . . Haulers Reinforced . | . . . Active Scanning Responses . | . . . Cargo Convoy Interrupts . | . . . Stealth | -11 -10 -10 --------- Run | Yrd Mat Sub Distress Signals . | . . . Communications Jammed . | . . . Distress Signals . | . . . Times Spotted 15 | . . 15 Peak Tracking Total 7 | . . 7 Tactical Retreats 1 | . . 1 Traps | -11 -10 -10 ------- Run | Yrd Mat Sub Traps Triggered . | . . . Indirectly . | . . . Trap Hack Attempts . | . . . Triggered . | . . . Disarmed . | . . . Reprogrammed . | . . . Reused . | . . . Traps Extracted . | . . . Installed . | . . . Triggered . | . . . Machines | -11 -10 -10 ---------- Run | Yrd Mat Sub Machines Disabled . | . . . Max in Single Turn . | . . . Machines Repaired . | . . . Machines Dismantled . | . . . Machines Sabotaged . | . . . Overloaded Fab Kills . | . . . Hacking | -11 -10 -10 --------- Run | Yrd Mat Sub Machines Accessed . | . . . Terminals . | . . . Fabricators . | . . . Repair Stations . | . . . Recycling Units . | . . . Scanalyzers . | . . . Garrison Access . | . . . Total Hacks . | . . . Successful . | . . . Failed . | . . . Catastrophic . | . . . Database Lockouts . | . . . Manual . | . . . Terminals . | . . . Fabricators . | . . . Repair Stations . | . . . Recycling Units . | . . . Scanalyzers . | . . . Garrison Access . | . . . Terminal Hacks . | . . . Fabricator Hacks . | . . . Repair Station Hacks . | . . . Recycling Unit Hacks . | . . . Scanalyzer . | . . . Garrison Access Hacks . | . . . Unauthorized Hacks . | . . . Terminals . | . . . Fabricators . | . . . Repair Stations . | . . . Recycling Units . | . . . Scanalyzers . | . . . Garrison Access . | . . . Data Cores Recovered . | . . . Used . | . . . Hacking Detections . | . . . Full Trace Events . | . . . Feedback Events . | . . . Feedback Blocked . | . . . Robot Schematics Acquired . | . . . Robots Built . | . . . Authchips . | . . . Time . | . . . Total Robot Build Rating . | . . . Part Schematics Acquired . | . . . Parts Built . | . . . Authchips . | . . . Time . | . . . Total Part Build Rating . | . . . Parts Repaired . | . . . Time . | . . . Parts Recycled . | . . . Recycled Matter . | . . . Retrieved Matter . | . . . Retrieved Components . | . . . Parts Scanalyzed . | . . . Part Schematics Acquired . | . . . Parts Damaged . | . . . Bothacking | -11 -10 -10 ------------ Run | Yrd Mat Sub Used RIF Installer . | . . . Robots Hacked . | . . . Non-combat . | . . . Combat . | . . . Robot Hacks Applied . | . . . Relay Couplers Released . | . . . Fabnet Peak Effective % . | . . . Robots Rewired . | . . . Allies Hacked . | . . . Hacks Repelled . | . . . Allies | -11 -10 -10 -------- Run | Yrd Mat Sub Total Allies . | . . . Largest Group . | . . . Highest-Rated Group . | . . . Highest-Rated Ally . | . . . Total Orders . | . . . Ally Attacks . | . . . Total Damage . | . . . Kills . | . . . Allies Corrupted . | . . . Allies Melted 2 | . . 2 Intel | -11 -10 -10 ------- Run | Yrd Mat Sub Active Infowar (turns) . | . . . Robot Analysis Total . | . . . Derelict Logs Recovered 1 | . . 1 Drone Launches . | . . . Drone Recoveries . | . . . Exploration | -11 -10 -10 ------------- Run | Yrd Mat Sub Turns Passed 834 | 119 229 486 Spaces Moved 581 | 107 227 247 Core 20 | 20 . . Treads 32 | . . 32 Legs 120 | . . 120 Wheels 409 | 87 227 95 Hover . | . . . Flight . | . . . Fastest Speed 50 | 50 100 100 Average Speed 117 | 90 100 146 Slowest Speed 190 | 100 100 190 Overloaded Moves . | . . . Propulsion Burnouts . | . . . Robots Hopped . | . . . Potential Cave-ins . | . . . Cave-ins Triggered . | . . . Exploration Rate (%) 17 | 5 30 16 Regions Visited 2 Branch Regions 1 Pre-discovered Areas 1 | . . 1 Known Exits Taken 1 | . 1 . Unknown Exits Taken 1 | 1 . . Scrap Searched . | . . . Spaces Dug . | . . . Terrain Destroyed 12 | . . 12 Melee . | . . . Projectile 12 | . . 12 AOE . | . . . Terrain Rammed . | . . . Walls Destroyed . | . . . Machines Disabled . | . . . Actions | -11 -10 -10 --------- Run | Yrd Mat Sub Total 675 | 126 229 320 Wait 30 | 7 . 23 Move 579 | 106 226 247 Hop . | . . . Pick Up 15 | 7 2 6 Fast Attach 5 | 5 . . Attach 8 | 1 1 6 Detach . | . . . Swap 2 | . . 2 Drop 5 | . . 5 Fire 31 | . . 31 Melee . | . . . Ram . | . . . Kick . | . . . Crush . | . . . Escape Stasis . | . . . Rewire . | . . . Trap . | . . . Miscellaneous . | . . . Route ------- -11/Scrapyard -10/Materials -10/Subcaves History --------- Turn | Location | Event 11 | -11/Scrapyard | Discovered new exit (range 15) 120 | -11/Scrapyard | Entered Materials 307 | -10/Materials | Build established: Mutant 339 | -10/Materials | Discovered new exit (range 10) 348 | -10/Materials | Identified exit to Subcaves 349 | -10/Materials | Entered Subcaves 436 | -10/Subcaves | Ambushed by swarm of Subdwellers 460 | -10/Subcaves | Core integrity fell below 50% 630 | -10/Subcaves | Learned location of Zion (-6) 678 | -10/Subcaves | Core integrity fell below 20% 835 | -10/Subcaves | Destroyed by OO-IIG(R) with Subdweller Machine Gun Last Messages --------------- HV Slug penetrates Twisted Machinery. HV Slug penetrates Wall. 09-QUJ(R) destroyed. HV Slug penetrates Twisted Machinery. Acquired 35 matter. Acquired 14 matter. HV Slug penetrates OO-IIG(R). OO-IIG(R) suffers critical hit (Destroy). OO-IIG(R) knocked back. HV Slug penetrates OO-IIG(R). UU-FSD(R) suffers critical hit (Meltdown). Sub. Laser melted. Sub. Monowheel melted. HV Slug penetrates Wall. HV Slug penetrates OO-IIG(R). OO-IIG(R) suffers critical hit (Destroy). HV Slug penetrates OO-IIG(R). OO-IIG(R) suffers critical hit (Destroy). OO-IIG(R) knocked back. HV Slug penetrates OO-IIG(R). Map ----- +----------------------------------------------------+ | # ! ## ## #???????????????????????????? | | &&& ^ #???????????????????????????? | | &!!& * # #????????????????????????????? | | =[!&=!%! ####??????????????????????????????? | | &&=*%%! ##????????????####?????????????????? | | &%[%%### #####?????????????# ##????????????????? | | &&#% ######????#######??????# #????????????????? | | #&%""#???????## ????#### ###??????????????? | | ###="##?????? ??### ## ""#??????????????? | | ?## #??????? ??# ##??????????????? | | ?# ==##??????? ??## # #??????????????? | | ?## #????????# ??## #??????????????? | | ?# ##????????# ?##"% " ##?????????????? | | ?# ##????????# ##"#=* #" ""#?????????????? | | ?# #?????????????# !%[*###""##?????????????? | | ?## #?????????????## ! #?#""#??????????????? | | ?## ##########??????# ##?"" #?????????????? | | ?# ## ## ##????## ##??"" #?????????????? | | ?## #????#" ##???# "#?????????????? | | ??# ###?## ##????# ##?????????????? | | ??### ## # ## ### "#????? "??????????????? | | ????####### # #; ##??????? #??????????????? | | ??????????## ####?????# ??????????????? | | ??????????## &## ##?????#??????????????? | | ??????????; %! # ##????????????????? | | ?????????#; R @ #????????????????? | | ?????????# #????????????????? | | ????????# % #????????????????? | | ????????## ### #????????????????? | | ?????????# ;#####?? #????????????????? | | ?????????## ;###????????# #???????????????? | | ??????????# #???????????? #??????????????? | | ????????? #????????????? #?????????????? | | ??????? #????????????? #?????????????? | | ?????? #?????????????? #?????????????? | | ?????# #???????????????##?????????????? | | ?????? #??????????????????????????????? | | ?????? ##??????????????????????????????? | | ????????## ##???????????????????????????????? | | ?????????? ##?????????????????????????????????? | | ????????????? ???????????????????????????????????? | | ?????????????????????????????????????????????????? | | ?????????????????????????????????????????????????? | | ?????????????????????????????????????????????????? | | ?????????????????????????????????????????????????? | | ?????????????????????????????????????????????????? | | ?????????????????????????????????????????????????? | | ?????????????????????????????????????????????????? | | ?????????????????????????????????????????????????? | | ?????????????????????????????????????????????????? | +----------------------------------------------------+ Best States ------------- Heat Dissipation 25 Energy Generation 10 Energy Capacity 250 Matter Stores 300 Matter Capacity 300 Sight Range 16 Terrain Scan Density 10 Evasion (%) 55 Recoil Reduction 2 Item Schematics ----------------- None Robot Schematics ------------------ None Fabricated ------------ Nothing Repaired ---------- Nothing Alien Tech Used ----------------- None Achievements -------------- None Challenges ------------ None Game ------ Seed SwordAluminumShotgun Manual? 0 Play Time 00:11:38 Cumulative 7.1 hours Start 2025.07.14 @ 00:39:04 End 2025.07.14 @ 00:51:15 Sessions 1 Manual Loads 0 Difficulty Rogue Special Mode None Game No. 13 Rogue 13 Adventurer 0 Explorer 0 Win Type - Total 0 Types 0/0/0/0/0/0/0/0/0/0 Lore% 3 Gallery% 14 Achievement% 12 Wizard Run 0 Options --------- Layout 1 ASCII 0 Keyboard 0 Movement Mouse Keybinds 0 Fullscreen 1 Font 32/SmallcapsGlow Map View 50x35 Zoom Use 0% Tactical HUD 0 Map Filters NONE Filters NONE Steam 1 RUN: 53506f32-4394-4f4a-aff2-9f05a4ca5b2e